{"text_format":"3","workbook":"xlsx","n_sheets":2,"sheets":["Παρακολούθηση απώλειας βάρους","υπολογισμοί"],"not_rendered":{"charts":1,"defined_names":10},"read":"whole","date_system":"1900"}

{"sheet":"Παρακολούθηση απώλειας βάρους","index":0,"n_rows":19,"n_cols":9,"rows_kept":19,"merged":[[0,3,0,7],[0,8,0,9],[1,3,2,9]]}
[null,"ΣΤΟΧΟΣ ΒΑΡΟΥΣ","ΠΡΟΒΟΛΗ ΓΡΑΦΗΜΑΤΟΣ","Όνομα",{"$nulls":4},"ΑΠΩΛΕΙΑ ΒΑΡΟΥΣ"]
[{"$nulls":3},"ΠΑΡΑΚΟΛΟΥΘΗΣΗ"]
[null,{"v":172,"d":"172.0 "},"ΕΒΔΟΜΑΔΙΑΙΑ"]
[null,"ΕΜΦΑΝΙΣΗ ΣΤΟΧΟΥ ΒΑΡΟΥΣ","Ναι"]
[null,"Σε αυτό το κελί βρίσκεται το γράφημα παρακολούθησης βάρους, που παρακολουθεί το τρέχον βάρος. Επιλέξτε \"Ναι\" στο κελί C4 για να εμφανίσετε τη γραμμή \"Στόχος Βάρους\" στο γράφημα περιοχής."]
[]
[null,"ΗΜΕΡΟΜΗΝΙΑ","ΒΑΡΟΣ"]
[null,{"$f":"TODAY()-77","v":"2022-01-19"},{"v":176,"d":"176.0 "}]
[null,{"$f":"TODAY()-70","v":"2022-01-26"},{"v":176,"d":"176.0 "}]
[null,{"$f":"TODAY()-63","v":"2022-02-02"},{"v":177.6,"d":"177.6 "}]
[null,{"$f":"TODAY()-56","v":"2022-02-09"},{"v":176.5,"d":"176.5 "}]
[null,{"$f":"TODAY()-49","v":"2022-02-16"},{"v":176.1,"d":"176.1 "}]
[null,{"$f":"TODAY()-42","v":"2022-02-23"},{"v":174,"d":"174.0 "}]
[null,{"$f":"TODAY()-35","v":"2022-03-02"},{"v":173.5,"d":"173.5 "}]
[null,{"$f":"TODAY()-28","v":"2022-03-09"},{"v":173,"d":"173.0 "}]
[null,{"$f":"TODAY()-21","v":"2022-03-16"},{"v":172,"d":"172.0 "}]
[null,{"$f":"TODAY()-14","v":"2022-03-23"},{"v":172,"d":"172.0 "}]
[null,{"$f":"TODAY()-7","v":"2022-03-30"},{"v":173,"d":"173.0 "}]
[null,{"$f":"TODAY()","v":"2022-04-06"},{"v":172,"d":"172.0 "}]

{"sheet":"υπολογισμοί","index":1,"n_rows":107,"n_cols":17,"rows_kept":107,"hidden":true}
["*** Το φύλλο πρέπει να παραμείνει κρυφό ***"]
[]
[{"$f":"COUNTIF(A5:A107,FALSE)","v":12},"Περίοδοι","Τιμές",{"$nulls":3},{"$f":"COUNTIF(H5:H28,\">\"&0)","v":4},"Περίοδοι",null,"Τιμές"]
[null,"Εβδομάδα",null,null,{"$f":"IFERROR(IF(ΕμφάνισηΒάρουςΣτόχου=\"Ναι\", TRUE, FALSE),FALSE)","v":true},null,null,"Μήνας","EOM"]
[{"$f":"FALSE","v":false},{"$f":"IFERROR(IF(LEN('Παρακολούθηση απώλειας βάρους'!$B8)=0,TODAY(),'Παρακολούθηση απώλειας βάρους'!$B8),TODAY())","v":"2022-01-19"},{"$f":"IFERROR(IF(LEN('Παρακολούθηση απώλειας βάρους'!$C8)=0,ΒάροςΣτόχου,'Παρακολούθηση απώλειας βάρους'!$C8),0)","v":176},{"$f":"IFERROR(IF(MIN(ΠερίοδοιΓραφήματος)=0,TODAY(),MIN(ΠερίοδοιΓραφήματος)),TODAY())","v":"2022-01-19"},{"$f":"IFERROR(IF($A$5,0,IF($E$4,ΒάροςΣτόχου,NA())),0)","v":172},null,null,{"$f":"IFERROR(IF($A$5,TODAY(),DATE(YEAR($B5),MONTH($B5),1)),\"\")","v":"2022-01-01"},{"$f":"IFERROR(IF($A$5,TODAY(),EOMONTH($H5,0)),\"\")","v":"2022-01-31"},{"$f":"IFERROR(IF($A$5,0,AVERAGEIFS(Βάρος[ΒΑΡΟΣ],Βάρος[ΗΜΕΡΟΜΗΝΙΑ],\">=\"&$H5,Βάρος[ΗΜΕΡΟΜΗΝΙΑ],\"<=\"&$I5)),NA())","v":176}]
[{"$f":"IF((LEN('Παρακολούθηση απώλειας βάρους'!$C9)=0),TRUE)","v":false},{"$f":"IFERROR(IF(A6,0,IF(LEN('Παρακολούθηση απώλειας βάρους'!$B9)=0,0,'Παρακολούθηση απώλειας βάρους'!$B9)),\"\")","v":"2022-01-26"},{"$f":"IFERROR(IF(A6,0,IF(LEN('Παρακολούθηση απώλειας βάρους'!$C9)=0,0,'Παρακολούθηση απώλειας βάρους'!$C9)),\"\")","v":176},{"$f":"IFERROR(IF(MAX(ΠερίοδοιΓραφήματος)=0,TODAY(),MAX(ΠερίοδοιΓραφήματος)),TODAY())","v":"2022-04-06"},{"$f":"IFERROR(IF($A$5,0,IF($E$4,ΒάροςΣτόχου,NA())),0)","v":172},null,null,{"$f":"IF($I5+1>MAX($B:$B),NA(),$I5+1)","v":"2022-02-01"},{"$f":"EOMONTH($H6,0)","v":"2022-02-28"},{"$f":"IFERROR(AVERAGEIFS(Βάρος[ΒΑΡΟΣ],Βάρος[ΗΜΕΡΟΜΗΝΙΑ],\">=\"&$H6,Βάρος[ΗΜΕΡΟΜΗΝΙΑ],\"<=\"&$I6),NA())","v":176.05}]
[{"$f":"IF((LEN('Παρακολούθηση απώλειας βάρους'!$C10)=0),TRUE)","v":false},{"$f":"IFERROR(IF(A7,0,IF(LEN('Παρακολούθηση απώλειας βάρους'!$B10)=0,0,'Παρακολούθηση απώλειας βάρους'!$B10)),\"\")","v":"2022-02-02"},{"$f":"IFERROR(IF(A7,0,IF(LEN('Παρακολούθηση απώλειας βάρους'!$C10)=0,0,'Παρακολούθηση απώλειας βάρους'!$C10)),\"\")","v":177.6},{"$nulls":4},"2022-03-01","2022-03-31",{"$f":"IFERROR(AVERAGEIFS(Βάρος[ΒΑΡΟΣ],Βάρος[ΗΜΕΡΟΜΗΝΙΑ],\">=\"&$H7,Βάρος[ΗΜΕΡΟΜΗΝΙΑ],\"<=\"&$I7),NA())","v":172.7}]
[{"$f":"IF((LEN('Παρακολούθηση απώλειας βάρους'!$C11)=0),TRUE)","v":false},{"$f":"IFERROR(IF(A8,0,IF(LEN('Παρακολούθηση απώλειας βάρους'!$B11)=0,0,'Παρακολούθηση απώλειας βάρους'!$B11)),\"\")","v":"2022-02-09"},{"$f":"IFERROR(IF(A8,0,IF(LEN('Παρακολούθηση απώλειας βάρους'!$C11)=0,0,'Παρακολούθηση απώλειας βάρους'!$C11)),\"\")","v":176.5},{"$nulls":4},"2022-04-01","2022-04-30",{"$f":"IFERROR(AVERAGEIFS(Βάρος[ΒΑΡΟΣ],Βάρος[ΗΜΕΡΟΜΗΝΙΑ],\">=\"&$H8,Βάρος[ΗΜΕΡΟΜΗΝΙΑ],\"<=\"&$I8),NA())","v":172}]
[{"$f":"IF((LEN('Παρακολούθηση απώλειας βάρους'!$C12)=0),TRUE)","v":false},{"$f":"IFERROR(IF(A9,0,IF(LEN('Παρακολούθηση απώλειας βάρους'!$B12)=0,0,'Παρακολούθηση απώλειας βάρους'!$B12)),\"\")","v":"2022-02-16"},{"$f":"IFERROR(IF(A9,0,IF(LEN('Παρακολούθηση απώλειας βάρους'!$C12)=0,0,'Παρακολούθηση απώλειας βάρους'!$C12)),\"\")","v":176.1},{"$nulls":4},{"$error":"#N/A"},{"$error":"#N/A"},{"$f":"IFERROR(AVERAGEIFS(Βάρος[ΒΑΡΟΣ],Βάρος[ΗΜΕΡΟΜΗΝΙΑ],\">=\"&$H9,Βάρος[ΗΜΕΡΟΜΗΝΙΑ],\"<=\"&$I9),NA())","v":{"$error":"#N/A"}}]
[{"$f":"IF((LEN('Παρακολούθηση απώλειας βάρους'!$C13)=0),TRUE)","v":false},{"$f":"IFERROR(IF(A10,0,IF(LEN('Παρακολούθηση απώλειας βάρους'!$B13)=0,0,'Παρακολούθηση απώλειας βάρους'!$B13)),\"\")","v":"2022-02-23"},{"$f":"IFERROR(IF(A10,0,IF(LEN('Παρακολούθηση απώλειας βάρους'!$C13)=0,0,'Παρακολούθηση απώλειας βάρους'!$C13)),\"\")","v":174},{"$nulls":4},{"$error":"#N/A"},{"$error":"#N/A"},{"$f":"IFERROR(AVERAGEIFS(Βάρος[ΒΑΡΟΣ],Βάρος[ΗΜΕΡΟΜΗΝΙΑ],\">=\"&$H10,Βάρος[ΗΜΕΡΟΜΗΝΙΑ],\"<=\"&$I10),NA())","v":{"$error":"#N/A"}}]
[{"$f":"IF((LEN('Παρακολούθηση απώλειας βάρους'!$C14)=0),TRUE)","v":false},{"$f":"IFERROR(IF(A11,0,IF(LEN('Παρακολούθηση απώλειας βάρους'!$B14)=0,0,'Παρακολούθηση απώλειας βάρους'!$B14)),\"\")","v":"2022-03-02"},{"$f":"IFERROR(IF(A11,0,IF(LEN('Παρακολούθηση απώλειας βάρους'!$C14)=0,0,'Παρακολούθηση απώλειας βάρους'!$C14)),\"\")","v":173.5},{"$nulls":4},{"$error":"#N/A"},{"$error":"#N/A"},{"$f":"IFERROR(AVERAGEIFS(Βάρος[ΒΑΡΟΣ],Βάρος[ΗΜΕΡΟΜΗΝΙΑ],\">=\"&$H11,Βάρος[ΗΜΕΡΟΜΗΝΙΑ],\"<=\"&$I11),NA())","v":{"$error":"#N/A"}},{"$nulls":6},{"$f":"MAX($B:$B)","v":"2022-04-06"}]
[{"$f":"IF((LEN('Παρακολούθηση απώλειας βάρους'!$C15)=0),TRUE)","v":false},{"$f":"IFERROR(IF(A12,0,IF(LEN('Παρακολούθηση απώλειας βάρους'!$B15)=0,0,'Παρακολούθηση απώλειας βάρους'!$B15)),\"\")","v":"2022-03-09"},{"$f":"IFERROR(IF(A12,0,IF(LEN('Παρακολούθηση απώλειας βάρους'!$C15)=0,0,'Παρακολούθηση απώλειας βάρους'!$C15)),\"\")","v":173},{"$nulls":4},{"$error":"#N/A"},{"$error":"#N/A"},{"$f":"IFERROR(AVERAGEIFS(Βάρος[ΒΑΡΟΣ],Βάρος[ΗΜΕΡΟΜΗΝΙΑ],\">=\"&$H12,Βάρος[ΗΜΕΡΟΜΗΝΙΑ],\"<=\"&$I12),NA())","v":{"$error":"#N/A"}}]
[{"$f":"IF((LEN('Παρακολούθηση απώλειας βάρους'!$C16)=0),TRUE)","v":false},{"$f":"IFERROR(IF(A13,0,IF(LEN('Παρακολούθηση απώλειας βάρους'!$B16)=0,0,'Παρακολούθηση απώλειας βάρους'!$B16)),\"\")","v":"2022-03-16"},{"$f":"IFERROR(IF(A13,0,IF(LEN('Παρακολούθηση απώλειας βάρους'!$C16)=0,0,'Παρακολούθηση απώλειας βάρους'!$C16)),\"\")","v":172},{"$nulls":4},{"$error":"#N/A"},{"$error":"#N/A"},{"$f":"IFERROR(AVERAGEIFS(Βάρος[ΒΑΡΟΣ],Βάρος[ΗΜΕΡΟΜΗΝΙΑ],\">=\"&$H13,Βάρος[ΗΜΕΡΟΜΗΝΙΑ],\"<=\"&$I13),NA())","v":{"$error":"#N/A"}}]
[{"$f":"IF((LEN('Παρακολούθηση απώλειας βάρους'!$C17)=0),TRUE)","v":false},{"$f":"IFERROR(IF(A14,0,IF(LEN('Παρακολούθηση απώλειας βάρους'!$B17)=0,0,'Παρακολούθηση απώλειας βάρους'!$B17)),\"\")","v":"2022-03-23"},{"$f":"IFERROR(IF(A14,0,IF(LEN('Παρακολούθηση απώλειας βάρους'!$C17)=0,0,'Παρακολούθηση απώλειας βάρους'!$C17)),\"\")","v":172},{"$nulls":4},{"$error":"#N/A"},{"$error":"#N/A"},{"$f":"IFERROR(AVERAGEIFS(Βάρος[ΒΑΡΟΣ],Βάρος[ΗΜΕΡΟΜΗΝΙΑ],\">=\"&$H14,Βάρος[ΗΜΕΡΟΜΗΝΙΑ],\"<=\"&$I14),NA())","v":{"$error":"#N/A"}}]
[{"$f":"IF((LEN('Παρακολούθηση απώλειας βάρους'!$C18)=0),TRUE)","v":false},{"$f":"IFERROR(IF(A15,0,IF(LEN('Παρακολούθηση απώλειας βάρους'!$B18)=0,0,'Παρακολούθηση απώλειας βάρους'!$B18)),\"\")","v":"2022-03-30"},{"$f":"IFERROR(IF(A15,0,IF(LEN('Παρακολούθηση απώλειας βάρους'!$C18)=0,0,'Παρακολούθηση απώλειας βάρους'!$C18)),\"\")","v":173},{"$nulls":4},{"$error":"#N/A"},{"$error":"#N/A"},{"$f":"IFERROR(AVERAGEIFS(Βάρος[ΒΑΡΟΣ],Βάρος[ΗΜΕΡΟΜΗΝΙΑ],\">=\"&$H15,Βάρος[ΗΜΕΡΟΜΗΝΙΑ],\"<=\"&$I15),NA())","v":{"$error":"#N/A"}}]
[{"$f":"IF((LEN('Παρακολούθηση απώλειας βάρους'!$C19)=0),TRUE)","v":false},{"$f":"IFERROR(IF(A16,0,IF(LEN('Παρακολούθηση απώλειας βάρους'!$B19)=0,0,'Παρακολούθηση απώλειας βάρους'!$B19)),\"\")","v":"2022-04-06"},{"$f":"IFERROR(IF(A16,0,IF(LEN('Παρακολούθηση απώλειας βάρους'!$C19)=0,0,'Παρακολούθηση απώλειας βάρους'!$C19)),\"\")","v":172},{"$nulls":4},{"$error":"#N/A"},{"$error":"#N/A"},{"$f":"IFERROR(AVERAGEIFS(Βάρος[ΒΑΡΟΣ],Βάρος[ΗΜΕΡΟΜΗΝΙΑ],\">=\"&$H16,Βάρος[ΗΜΕΡΟΜΗΝΙΑ],\"<=\"&$I16),NA())","v":{"$error":"#N/A"}}]
[{"$f":"IF((LEN('Παρακολούθηση απώλειας βάρους'!$C20)=0),TRUE)","v":true},{"$f":"IFERROR(IF(A17,0,IF(LEN('Παρακολούθηση απώλειας βάρους'!$B20)=0,0,'Παρακολούθηση απώλειας βάρους'!$B20)),\"\")","v":"00:00:00"},{"$f":"IFERROR(IF(A17,0,IF(LEN('Παρακολούθηση απώλειας βάρους'!$C20)=0,0,'Παρακολούθηση απώλειας βάρους'!$C20)),\"\")","v":0},{"$nulls":4},{"$error":"#N/A"},{"$error":"#N/A"},{"$f":"IFERROR(AVERAGEIFS(Βάρος[ΒΑΡΟΣ],Βάρος[ΗΜΕΡΟΜΗΝΙΑ],\">=\"&$H17,Βάρος[ΗΜΕΡΟΜΗΝΙΑ],\"<=\"&$I17),NA())","v":{"$error":"#N/A"}}]
[{"$f":"IF((LEN('Παρακολούθηση απώλειας βάρους'!$C21)=0),TRUE)","v":true},{"$f":"IFERROR(IF(A18,0,IF(LEN('Παρακολούθηση απώλειας βάρους'!$B21)=0,0,'Παρακολούθηση απώλειας βάρους'!$B21)),\"\")","v":"00:00:00"},{"$f":"IFERROR(IF(A18,0,IF(LEN('Παρακολούθηση απώλειας βάρους'!$C21)=0,0,'Παρακολούθηση απώλειας βάρους'!$C21)),\"\")","v":0},{"$nulls":4},{"$error":"#N/A"},{"$error":"#N/A"},{"$f":"IFERROR(AVERAGEIFS(Βάρος[ΒΑΡΟΣ],Βάρος[ΗΜΕΡΟΜΗΝΙΑ],\">=\"&$H18,Βάρος[ΗΜΕΡΟΜΗΝΙΑ],\"<=\"&$I18),NA())","v":{"$error":"#N/A"}}]
[{"$f":"IF((LEN('Παρακολούθηση απώλειας βάρους'!$C22)=0),TRUE)","v":true},{"$f":"IFERROR(IF(A19,0,IF(LEN('Παρακολούθηση απώλειας βάρους'!$B22)=0,0,'Παρακολούθηση απώλειας βάρους'!$B22)),\"\")","v":"00:00:00"},{"$f":"IFERROR(IF(A19,0,IF(LEN('Παρακολούθηση απώλειας βάρους'!$C22)=0,0,'Παρακολούθηση απώλειας βάρους'!$C22)),\"\")","v":0},{"$nulls":4},{"$error":"#N/A"},{"$error":"#N/A"},{"$f":"IFERROR(AVERAGEIFS(Βάρος[ΒΑΡΟΣ],Βάρος[ΗΜΕΡΟΜΗΝΙΑ],\">=\"&$H19,Βάρος[ΗΜΕΡΟΜΗΝΙΑ],\"<=\"&$I19),NA())","v":{"$error":"#N/A"}}]
[{"$f":"IF((LEN('Παρακολούθηση απώλειας βάρους'!$C23)=0),TRUE)","v":true},{"$f":"IFERROR(IF(A20,0,IF(LEN('Παρακολούθηση απώλειας βάρους'!$B23)=0,0,'Παρακολούθηση απώλειας βάρους'!$B23)),\"\")","v":"00:00:00"},{"$f":"IFERROR(IF(A20,0,IF(LEN('Παρακολούθηση απώλειας βάρους'!$C23)=0,0,'Παρακολούθηση απώλειας βάρους'!$C23)),\"\")","v":0},{"$nulls":4},{"$error":"#N/A"},{"$error":"#N/A"},{"$f":"IFERROR(AVERAGEIFS(Βάρος[ΒΑΡΟΣ],Βάρος[ΗΜΕΡΟΜΗΝΙΑ],\">=\"&$H20,Βάρος[ΗΜΕΡΟΜΗΝΙΑ],\"<=\"&$I20),NA())","v":{"$error":"#N/A"}}]
[{"$f":"IF((LEN('Παρακολούθηση απώλειας βάρους'!$C24)=0),TRUE)","v":true},{"$f":"IFERROR(IF(A21,0,IF(LEN('Παρακολούθηση απώλειας βάρους'!$B24)=0,0,'Παρακολούθηση απώλειας βάρους'!$B24)),\"\")","v":"00:00:00"},{"$f":"IFERROR(IF(A21,0,IF(LEN('Παρακολούθηση απώλειας βάρους'!$C24)=0,0,'Παρακολούθηση απώλειας βάρους'!$C24)),\"\")","v":0},{"$nulls":4},{"$error":"#N/A"},{"$error":"#N/A"},{"$f":"IFERROR(AVERAGEIFS(Βάρος[ΒΑΡΟΣ],Βάρος[ΗΜΕΡΟΜΗΝΙΑ],\">=\"&$H21,Βάρος[ΗΜΕΡΟΜΗΝΙΑ],\"<=\"&$I21),NA())","v":{"$error":"#N/A"}}]
[{"$f":"IF((LEN('Παρακολούθηση απώλειας βάρους'!$C25)=0),TRUE)","v":true},{"$f":"IFERROR(IF(A22,0,IF(LEN('Παρακολούθηση απώλειας βάρους'!$B25)=0,0,'Παρακολούθηση απώλειας βάρους'!$B25)),\"\")","v":"00:00:00"},{"$f":"IFERROR(IF(A22,0,IF(LEN('Παρακολούθηση απώλειας βάρους'!$C25)=0,0,'Παρακολούθηση απώλειας βάρους'!$C25)),\"\")","v":0},{"$nulls":4},{"$error":"#N/A"},{"$error":"#N/A"},{"$f":"IFERROR(AVERAGEIFS(Βάρος[ΒΑΡΟΣ],Βάρος[ΗΜΕΡΟΜΗΝΙΑ],\">=\"&$H22,Βάρος[ΗΜΕΡΟΜΗΝΙΑ],\"<=\"&$I22),NA())","v":{"$error":"#N/A"}}]
[{"$f":"IF((LEN('Παρακολούθηση απώλειας βάρους'!$C26)=0),TRUE)","v":true},{"$f":"IFERROR(IF(A23,0,IF(LEN('Παρακολούθηση απώλειας βάρους'!$B26)=0,0,'Παρακολούθηση απώλειας βάρους'!$B26)),\"\")","v":"00:00:00"},{"$f":"IFERROR(IF(A23,0,IF(LEN('Παρακολούθηση απώλειας βάρους'!$C26)=0,0,'Παρακολούθηση απώλειας βάρους'!$C26)),\"\")","v":0},{"$nulls":4},{"$error":"#N/A"},{"$error":"#N/A"},{"$f":"IFERROR(AVERAGEIFS(Βάρος[ΒΑΡΟΣ],Βάρος[ΗΜΕΡΟΜΗΝΙΑ],\">=\"&$H23,Βάρος[ΗΜΕΡΟΜΗΝΙΑ],\"<=\"&$I23),NA())","v":{"$error":"#N/A"}}]
[{"$f":"IF((LEN('Παρακολούθηση απώλειας βάρους'!$C27)=0),TRUE)","v":true},{"$f":"IFERROR(IF(A24,0,IF(LEN('Παρακολούθηση απώλειας βάρους'!$B27)=0,0,'Παρακολούθηση απώλειας βάρους'!$B27)),\"\")","v":"00:00:00"},{"$f":"IFERROR(IF(A24,0,IF(LEN('Παρακολούθηση απώλειας βάρους'!$C27)=0,0,'Παρακολούθηση απώλειας βάρους'!$C27)),\"\")","v":0},{"$nulls":4},{"$error":"#N/A"},{"$error":"#N/A"},{"$f":"IFERROR(AVERAGEIFS(Βάρος[ΒΑΡΟΣ],Βάρος[ΗΜΕΡΟΜΗΝΙΑ],\">=\"&$H24,Βάρος[ΗΜΕΡΟΜΗΝΙΑ],\"<=\"&$I24),NA())","v":{"$error":"#N/A"}}]
[{"$f":"IF((LEN('Παρακολούθηση απώλειας βάρους'!$C28)=0),TRUE)","v":true},{"$f":"IFERROR(IF(A25,0,IF(LEN('Παρακολούθηση απώλειας βάρους'!$B28)=0,0,'Παρακολούθηση απώλειας βάρους'!$B28)),\"\")","v":"00:00:00"},{"$f":"IFERROR(IF(A25,0,IF(LEN('Παρακολούθηση απώλειας βάρους'!$C28)=0,0,'Παρακολούθηση απώλειας βάρους'!$C28)),\"\")","v":0},{"$nulls":4},{"$error":"#N/A"},{"$error":"#N/A"},{"$f":"IFERROR(AVERAGEIFS(Βάρος[ΒΑΡΟΣ],Βάρος[ΗΜΕΡΟΜΗΝΙΑ],\">=\"&$H25,Βάρος[ΗΜΕΡΟΜΗΝΙΑ],\"<=\"&$I25),NA())","v":{"$error":"#N/A"}}]
[{"$f":"IF((LEN('Παρακολούθηση απώλειας βάρους'!$C29)=0),TRUE)","v":true},{"$f":"IFERROR(IF(A26,0,IF(LEN('Παρακολούθηση απώλειας βάρους'!$B29)=0,0,'Παρακολούθηση απώλειας βάρους'!$B29)),\"\")","v":"00:00:00"},{"$f":"IFERROR(IF(A26,0,IF(LEN('Παρακολούθηση απώλειας βάρους'!$C29)=0,0,'Παρακολούθηση απώλειας βάρους'!$C29)),\"\")","v":0},{"$nulls":4},{"$error":"#N/A"},{"$error":"#N/A"},{"$f":"IFERROR(AVERAGEIFS(Βάρος[ΒΑΡΟΣ],Βάρος[ΗΜΕΡΟΜΗΝΙΑ],\">=\"&$H26,Βάρος[ΗΜΕΡΟΜΗΝΙΑ],\"<=\"&$I26),NA())","v":{"$error":"#N/A"}}]
[{"$f":"IF((LEN('Παρακολούθηση απώλειας βάρους'!$C30)=0),TRUE)","v":true},{"$f":"IFERROR(IF(A27,0,IF(LEN('Παρακολούθηση απώλειας βάρους'!$B30)=0,0,'Παρακολούθηση απώλειας βάρους'!$B30)),\"\")","v":"00:00:00"},{"$f":"IFERROR(IF(A27,0,IF(LEN('Παρακολούθηση απώλειας βάρους'!$C30)=0,0,'Παρακολούθηση απώλειας βάρους'!$C30)),\"\")","v":0},{"$nulls":4},{"$error":"#N/A"},{"$error":"#N/A"},{"$f":"IFERROR(AVERAGEIFS(Βάρος[ΒΑΡΟΣ],Βάρος[ΗΜΕΡΟΜΗΝΙΑ],\">=\"&$H27,Βάρος[ΗΜΕΡΟΜΗΝΙΑ],\"<=\"&$I27),NA())","v":{"$error":"#N/A"}}]
[{"$f":"IF((LEN('Παρακολούθηση απώλειας βάρους'!$C31)=0),TRUE)","v":true},{"$f":"IFERROR(IF(A28,0,IF(LEN('Παρακολούθηση απώλειας βάρους'!$B31)=0,0,'Παρακολούθηση απώλειας βάρους'!$B31)),\"\")","v":"00:00:00"},{"$f":"IFERROR(IF(A28,0,IF(LEN('Παρακολούθηση απώλειας βάρους'!$C31)=0,0,'Παρακολούθηση απώλειας βάρους'!$C31)),\"\")","v":0},{"$nulls":4},{"$error":"#N/A"},{"$error":"#N/A"},{"$f":"IFERROR(AVERAGEIFS(Βάρος[ΒΑΡΟΣ],Βάρος[ΗΜΕΡΟΜΗΝΙΑ],\">=\"&$H28,Βάρος[ΗΜΕΡΟΜΗΝΙΑ],\"<=\"&$I28),NA())","v":{"$error":"#N/A"}}]
[{"$f":"IF((LEN('Παρακολούθηση απώλειας βάρους'!$C32)=0),TRUE)","v":true},{"$f":"IFERROR(IF(A29,0,IF(LEN('Παρακολούθηση απώλειας βάρους'!$B32)=0,0,'Παρακολούθηση απώλειας βάρους'!$B32)),\"\")","v":"00:00:00"},{"$f":"IFERROR(IF(A29,0,IF(LEN('Παρακολούθηση απώλειας βάρους'!$C32)=0,0,'Παρακολούθηση απώλειας βάρους'!$C32)),\"\")","v":0}]
[{"$f":"IF((LEN('Παρακολούθηση απώλειας βάρους'!$C33)=0),TRUE)","v":true},{"$f":"IFERROR(IF(A30,0,IF(LEN('Παρακολούθηση απώλειας βάρους'!$B33)=0,0,'Παρακολούθηση απώλειας βάρους'!$B33)),\"\")","v":"00:00:00"},{"$f":"IFERROR(IF(A30,0,IF(LEN('Παρακολούθηση απώλειας βάρους'!$C33)=0,0,'Παρακολούθηση απώλειας βάρους'!$C33)),\"\")","v":0}]
[{"$f":"IF((LEN('Παρακολούθηση απώλειας βάρους'!$C34)=0),TRUE)","v":true},{"$f":"IFERROR(IF(A31,0,IF(LEN('Παρακολούθηση απώλειας βάρους'!$B34)=0,0,'Παρακολούθηση απώλειας βάρους'!$B34)),\"\")","v":"00:00:00"},{"$f":"IFERROR(IF(A31,0,IF(LEN('Παρακολούθηση απώλειας βάρους'!$C34)=0,0,'Παρακολούθηση απώλειας βάρους'!$C34)),\"\")","v":0}]
[{"$f":"IF((LEN('Παρακολούθηση απώλειας βάρους'!$C35)=0),TRUE)","v":true},{"$f":"IFERROR(IF(A32,0,IF(LEN('Παρακολούθηση απώλειας βάρους'!$B35)=0,0,'Παρακολούθηση απώλειας βάρους'!$B35)),\"\")","v":"00:00:00"},{"$f":"IFERROR(IF(A32,0,IF(LEN('Παρακολούθηση απώλειας βάρους'!$C35)=0,0,'Παρακολούθηση απώλειας βάρους'!$C35)),\"\")","v":0}]
[{"$f":"IF((LEN('Παρακολούθηση απώλειας βάρους'!$C36)=0),TRUE)","v":true},{"$f":"IFERROR(IF(A33,0,IF(LEN('Παρακολούθηση απώλειας βάρους'!$B36)=0,0,'Παρακολούθηση απώλειας βάρους'!$B36)),\"\")","v":"00:00:00"},{"$f":"IFERROR(IF(A33,0,IF(LEN('Παρακολούθηση απώλειας βάρους'!$C36)=0,0,'Παρακολούθηση απώλειας βάρους'!$C36)),\"\")","v":0}]
[{"$f":"IF((LEN('Παρακολούθηση απώλειας βάρους'!$C37)=0),TRUE)","v":true},{"$f":"IFERROR(IF(A34,0,IF(LEN('Παρακολούθηση απώλειας βάρους'!$B37)=0,0,'Παρακολούθηση απώλειας βάρους'!$B37)),\"\")","v":"00:00:00"},{"$f":"IFERROR(IF(A34,0,IF(LEN('Παρακολούθηση απώλειας βάρους'!$C37)=0,0,'Παρακολούθηση απώλειας βάρους'!$C37)),\"\")","v":0}]
[{"$f":"IF((LEN('Παρακολούθηση απώλειας βάρους'!$C38)=0),TRUE)","v":true},{"$f":"IFERROR(IF(A35,0,IF(LEN('Παρακολούθηση απώλειας βάρους'!$B38)=0,0,'Παρακολούθηση απώλειας βάρους'!$B38)),\"\")","v":"00:00:00"},{"$f":"IFERROR(IF(A35,0,IF(LEN('Παρακολούθηση απώλειας βάρους'!$C38)=0,0,'Παρακολούθηση απώλειας βάρους'!$C38)),\"\")","v":0}]
[{"$f":"IF((LEN('Παρακολούθηση απώλειας βάρους'!$C39)=0),TRUE)","v":true},{"$f":"IFERROR(IF(A36,0,IF(LEN('Παρακολούθηση απώλειας βάρους'!$B39)=0,0,'Παρακολούθηση απώλειας βάρους'!$B39)),\"\")","v":"00:00:00"},{"$f":"IFERROR(IF(A36,0,IF(LEN('Παρακολούθηση απώλειας βάρους'!$C39)=0,0,'Παρακολούθηση απώλειας βάρους'!$C39)),\"\")","v":0}]
[{"$f":"IF((LEN('Παρακολούθηση απώλειας βάρους'!$C40)=0),TRUE)","v":true},{"$f":"IFERROR(IF(A37,0,IF(LEN('Παρακολούθηση απώλειας βάρους'!$B40)=0,0,'Παρακολούθηση απώλειας βάρους'!$B40)),\"\")","v":"00:00:00"},{"$f":"IFERROR(IF(A37,0,IF(LEN('Παρακολούθηση απώλειας βάρους'!$C40)=0,0,'Παρακολούθηση απώλειας βάρους'!$C40)),\"\")","v":0}]
[{"$f":"IF((LEN('Παρακολούθηση απώλειας βάρους'!$C41)=0),TRUE)","v":true},{"$f":"IFERROR(IF(A38,0,IF(LEN('Παρακολούθηση απώλειας βάρους'!$B41)=0,0,'Παρακολούθηση απώλειας βάρους'!$B41)),\"\")","v":"00:00:00"},{"$f":"IFERROR(IF(A38,0,IF(LEN('Παρακολούθηση απώλειας βάρους'!$C41)=0,0,'Παρακολούθηση απώλειας βάρους'!$C41)),\"\")","v":0}]
[{"$f":"IF((LEN('Παρακολούθηση απώλειας βάρους'!$C42)=0),TRUE)","v":true},{"$f":"IFERROR(IF(A39,0,IF(LEN('Παρακολούθηση απώλειας βάρους'!$B42)=0,0,'Παρακολούθηση απώλειας βάρους'!$B42)),\"\")","v":"00:00:00"},{"$f":"IFERROR(IF(A39,0,IF(LEN('Παρακολούθηση απώλειας βάρους'!$C42)=0,0,'Παρακολούθηση απώλειας βάρους'!$C42)),\"\")","v":0}]
[{"$f":"IF((LEN('Παρακολούθηση απώλειας βάρους'!$C43)=0),TRUE)","v":true},{"$f":"IFERROR(IF(A40,0,IF(LEN('Παρακολούθηση απώλειας βάρους'!$B43)=0,0,'Παρακολούθηση απώλειας βάρους'!$B43)),\"\")","v":"00:00:00"},{"$f":"IFERROR(IF(A40,0,IF(LEN('Παρακολούθηση απώλειας βάρους'!$C43)=0,0,'Παρακολούθηση απώλειας βάρους'!$C43)),\"\")","v":0}]
[{"$f":"IF((LEN('Παρακολούθηση απώλειας βάρους'!$C44)=0),TRUE)","v":true},{"$f":"IFERROR(IF(A41,0,IF(LEN('Παρακολούθηση απώλειας βάρους'!$B44)=0,0,'Παρακολούθηση απώλειας βάρους'!$B44)),\"\")","v":"00:00:00"},{"$f":"IFERROR(IF(A41,0,IF(LEN('Παρακολούθηση απώλειας βάρους'!$C44)=0,0,'Παρακολούθηση απώλειας βάρους'!$C44)),\"\")","v":0}]
[{"$f":"IF((LEN('Παρακολούθηση απώλειας βάρους'!$C45)=0),TRUE)","v":true},{"$f":"IFERROR(IF(A42,0,IF(LEN('Παρακολούθηση απώλειας βάρους'!$B45)=0,0,'Παρακολούθηση απώλειας βάρους'!$B45)),\"\")","v":"00:00:00"},{"$f":"IFERROR(IF(A42,0,IF(LEN('Παρακολούθηση απώλειας βάρους'!$C45)=0,0,'Παρακολούθηση απώλειας βάρους'!$C45)),\"\")","v":0}]
[{"$f":"IF((LEN('Παρακολούθηση απώλειας βάρους'!$C46)=0),TRUE)","v":true},{"$f":"IFERROR(IF(A43,0,IF(LEN('Παρακολούθηση απώλειας βάρους'!$B46)=0,0,'Παρακολούθηση απώλειας βάρους'!$B46)),\"\")","v":"00:00:00"},{"$f":"IFERROR(IF(A43,0,IF(LEN('Παρακολούθηση απώλειας βάρους'!$C46)=0,0,'Παρακολούθηση απώλειας βάρους'!$C46)),\"\")","v":0}]
[{"$f":"IF((LEN('Παρακολούθηση απώλειας βάρους'!$C47)=0),TRUE)","v":true},{"$f":"IFERROR(IF(A44,0,IF(LEN('Παρακολούθηση απώλειας βάρους'!$B47)=0,0,'Παρακολούθηση απώλειας βάρους'!$B47)),\"\")","v":"00:00:00"},{"$f":"IFERROR(IF(A44,0,IF(LEN('Παρακολούθηση απώλειας βάρους'!$C47)=0,0,'Παρακολούθηση απώλειας βάρους'!$C47)),\"\")","v":0}]
[{"$f":"IF((LEN('Παρακολούθηση απώλειας βάρους'!$C48)=0),TRUE)","v":true},{"$f":"IFERROR(IF(A45,0,IF(LEN('Παρακολούθηση απώλειας βάρους'!$B48)=0,0,'Παρακολούθηση απώλειας βάρους'!$B48)),\"\")","v":"00:00:00"},{"$f":"IFERROR(IF(A45,0,IF(LEN('Παρακολούθηση απώλειας βάρους'!$C48)=0,0,'Παρακολούθηση απώλειας βάρους'!$C48)),\"\")","v":0}]
[{"$f":"IF((LEN('Παρακολούθηση απώλειας βάρους'!$C49)=0),TRUE)","v":true},{"$f":"IFERROR(IF(A46,0,IF(LEN('Παρακολούθηση απώλειας βάρους'!$B49)=0,0,'Παρακολούθηση απώλειας βάρους'!$B49)),\"\")","v":"00:00:00"},{"$f":"IFERROR(IF(A46,0,IF(LEN('Παρακολούθηση απώλειας βάρους'!$C49)=0,0,'Παρακολούθηση απώλειας βάρους'!$C49)),\"\")","v":0}]
[{"$f":"IF((LEN('Παρακολούθηση απώλειας βάρους'!$C50)=0),TRUE)","v":true},{"$f":"IFERROR(IF(A47,0,IF(LEN('Παρακολούθηση απώλειας βάρους'!$B50)=0,0,'Παρακολούθηση απώλειας βάρους'!$B50)),\"\")","v":"00:00:00"},{"$f":"IFERROR(IF(A47,0,IF(LEN('Παρακολούθηση απώλειας βάρους'!$C50)=0,0,'Παρακολούθηση απώλειας βάρους'!$C50)),\"\")","v":0}]
[{"$f":"IF((LEN('Παρακολούθηση απώλειας βάρους'!$C51)=0),TRUE)","v":true},{"$f":"IFERROR(IF(A48,0,IF(LEN('Παρακολούθηση απώλειας βάρους'!$B51)=0,0,'Παρακολούθηση απώλειας βάρους'!$B51)),\"\")","v":"00:00:00"},{"$f":"IFERROR(IF(A48,0,IF(LEN('Παρακολούθηση απώλειας βάρους'!$C51)=0,0,'Παρακολούθηση απώλειας βάρους'!$C51)),\"\")","v":0}]
[{"$f":"IF((LEN('Παρακολούθηση απώλειας βάρους'!$C52)=0),TRUE)","v":true},{"$f":"IFERROR(IF(A49,0,IF(LEN('Παρακολούθηση απώλειας βάρους'!$B52)=0,0,'Παρακολούθηση απώλειας βάρους'!$B52)),\"\")","v":"00:00:00"},{"$f":"IFERROR(IF(A49,0,IF(LEN('Παρακολούθηση απώλειας βάρους'!$C52)=0,0,'Παρακολούθηση απώλειας βάρους'!$C52)),\"\")","v":0}]
[{"$f":"IF((LEN('Παρακολούθηση απώλειας βάρους'!$C53)=0),TRUE)","v":true},{"$f":"IFERROR(IF(A50,0,IF(LEN('Παρακολούθηση απώλειας βάρους'!$B53)=0,0,'Παρακολούθηση απώλειας βάρους'!$B53)),\"\")","v":"00:00:00"},{"$f":"IFERROR(IF(A50,0,IF(LEN('Παρακολούθηση απώλειας βάρους'!$C53)=0,0,'Παρακολούθηση απώλειας βάρους'!$C53)),\"\")","v":0}]
[{"$f":"IF((LEN('Παρακολούθηση απώλειας βάρους'!$C54)=0),TRUE)","v":true},{"$f":"IFERROR(IF(A51,0,IF(LEN('Παρακολούθηση απώλειας βάρους'!$B54)=0,0,'Παρακολούθηση απώλειας βάρους'!$B54)),\"\")","v":"00:00:00"},{"$f":"IFERROR(IF(A51,0,IF(LEN('Παρακολούθηση απώλειας βάρους'!$C54)=0,0,'Παρακολούθηση απώλειας βάρους'!$C54)),\"\")","v":0}]
[{"$f":"IF((LEN('Παρακολούθηση απώλειας βάρους'!$C55)=0),TRUE)","v":true},{"$f":"IFERROR(IF(A52,0,IF(LEN('Παρακολούθηση απώλειας βάρους'!$B55)=0,0,'Παρακολούθηση απώλειας βάρους'!$B55)),\"\")","v":"00:00:00"},{"$f":"IFERROR(IF(A52,0,IF(LEN('Παρακολούθηση απώλειας βάρους'!$C55)=0,0,'Παρακολούθηση απώλειας βάρους'!$C55)),\"\")","v":0}]
[{"$f":"IF((LEN('Παρακολούθηση απώλειας βάρους'!$C56)=0),TRUE)","v":true},{"$f":"IFERROR(IF(A53,0,IF(LEN('Παρακολούθηση απώλειας βάρους'!$B56)=0,0,'Παρακολούθηση απώλειας βάρους'!$B56)),\"\")","v":"00:00:00"},{"$f":"IFERROR(IF(A53,0,IF(LEN('Παρακολούθηση απώλειας βάρους'!$C56)=0,0,'Παρακολούθηση απώλειας βάρους'!$C56)),\"\")","v":0}]
[{"$f":"IF((LEN('Παρακολούθηση απώλειας βάρους'!$C57)=0),TRUE)","v":true},{"$f":"IFERROR(IF(A54,0,IF(LEN('Παρακολούθηση απώλειας βάρους'!$B57)=0,0,'Παρακολούθηση απώλειας βάρους'!$B57)),\"\")","v":"00:00:00"},{"$f":"IFERROR(IF(A54,0,IF(LEN('Παρακολούθηση απώλειας βάρους'!$C57)=0,0,'Παρακολούθηση απώλειας βάρους'!$C57)),\"\")","v":0}]
[{"$f":"IF((LEN('Παρακολούθηση απώλειας βάρους'!$C58)=0),TRUE)","v":true},{"$f":"IFERROR(IF(A55,0,IF(LEN('Παρακολούθηση απώλειας βάρους'!$B58)=0,0,'Παρακολούθηση απώλειας βάρους'!$B58)),\"\")","v":"00:00:00"},{"$f":"IFERROR(IF(A55,0,IF(LEN('Παρακολούθηση απώλειας βάρους'!$C58)=0,0,'Παρακολούθηση απώλειας βάρους'!$C58)),\"\")","v":0}]
[{"$f":"IF((LEN('Παρακολούθηση απώλειας βάρους'!$C59)=0),TRUE)","v":true},{"$f":"IFERROR(IF(A56,0,IF(LEN('Παρακολούθηση απώλειας βάρους'!$B59)=0,0,'Παρακολούθηση απώλειας βάρους'!$B59)),\"\")","v":"00:00:00"},{"$f":"IFERROR(IF(A56,0,IF(LEN('Παρακολούθηση απώλειας βάρους'!$C59)=0,0,'Παρακολούθηση απώλειας βάρους'!$C59)),\"\")","v":0}]
[{"$f":"IF((LEN('Παρακολούθηση απώλειας βάρους'!$C60)=0),TRUE)","v":true},{"$f":"IFERROR(IF(A57,0,IF(LEN('Παρακολούθηση απώλειας βάρους'!$B60)=0,0,'Παρακολούθηση απώλειας βάρους'!$B60)),\"\")","v":"00:00:00"},{"$f":"IFERROR(IF(A57,0,IF(LEN('Παρακολούθηση απώλειας βάρους'!$C60)=0,0,'Παρακολούθηση απώλειας βάρους'!$C60)),\"\")","v":0}]
[{"$f":"IF((LEN('Παρακολούθηση απώλειας βάρους'!$C61)=0),TRUE)","v":true},{"$f":"IFERROR(IF(A58,0,IF(LEN('Παρακολούθηση απώλειας βάρους'!$B61)=0,0,'Παρακολούθηση απώλειας βάρους'!$B61)),\"\")","v":"00:00:00"},{"$f":"IFERROR(IF(A58,0,IF(LEN('Παρακολούθηση απώλειας βάρους'!$C61)=0,0,'Παρακολούθηση απώλειας βάρους'!$C61)),\"\")","v":0}]
[{"$f":"IF((LEN('Παρακολούθηση απώλειας βάρους'!$C62)=0),TRUE)","v":true},{"$f":"IFERROR(IF(A59,0,IF(LEN('Παρακολούθηση απώλειας βάρους'!$B62)=0,0,'Παρακολούθηση απώλειας βάρους'!$B62)),\"\")","v":"00:00:00"},{"$f":"IFERROR(IF(A59,0,IF(LEN('Παρακολούθηση απώλειας βάρους'!$C62)=0,0,'Παρακολούθηση απώλειας βάρους'!$C62)),\"\")","v":0}]
[{"$f":"IF((LEN('Παρακολούθηση απώλειας βάρους'!$C63)=0),TRUE)","v":true},{"$f":"IFERROR(IF(A60,0,IF(LEN('Παρακολούθηση απώλειας βάρους'!$B63)=0,0,'Παρακολούθηση απώλειας βάρους'!$B63)),\"\")","v":"00:00:00"},{"$f":"IFERROR(IF(A60,0,IF(LEN('Παρακολούθηση απώλειας βάρους'!$C63)=0,0,'Παρακολούθηση απώλειας βάρους'!$C63)),\"\")","v":0}]
[{"$f":"IF((LEN('Παρακολούθηση απώλειας βάρους'!$C64)=0),TRUE)","v":true},{"$f":"IFERROR(IF(A61,0,IF(LEN('Παρακολούθηση απώλειας βάρους'!$B64)=0,0,'Παρακολούθηση απώλειας βάρους'!$B64)),\"\")","v":"00:00:00"},{"$f":"IFERROR(IF(A61,0,IF(LEN('Παρακολούθηση απώλειας βάρους'!$C64)=0,0,'Παρακολούθηση απώλειας βάρους'!$C64)),\"\")","v":0}]
[{"$f":"IF((LEN('Παρακολούθηση απώλειας βάρους'!$C65)=0),TRUE)","v":true},{"$f":"IFERROR(IF(A62,0,IF(LEN('Παρακολούθηση απώλειας βάρους'!$B65)=0,0,'Παρακολούθηση απώλειας βάρους'!$B65)),\"\")","v":"00:00:00"},{"$f":"IFERROR(IF(A62,0,IF(LEN('Παρακολούθηση απώλειας βάρους'!$C65)=0,0,'Παρακολούθηση απώλειας βάρους'!$C65)),\"\")","v":0}]
[{"$f":"IF((LEN('Παρακολούθηση απώλειας βάρους'!$C66)=0),TRUE)","v":true},{"$f":"IFERROR(IF(A63,0,IF(LEN('Παρακολούθηση απώλειας βάρους'!$B66)=0,0,'Παρακολούθηση απώλειας βάρους'!$B66)),\"\")","v":"00:00:00"},{"$f":"IFERROR(IF(A63,0,IF(LEN('Παρακολούθηση απώλειας βάρους'!$C66)=0,0,'Παρακολούθηση απώλειας βάρους'!$C66)),\"\")","v":0}]
[{"$f":"IF((LEN('Παρακολούθηση απώλειας βάρους'!$C67)=0),TRUE)","v":true},{"$f":"IFERROR(IF(A64,0,IF(LEN('Παρακολούθηση απώλειας βάρους'!$B67)=0,0,'Παρακολούθηση απώλειας βάρους'!$B67)),\"\")","v":"00:00:00"},{"$f":"IFERROR(IF(A64,0,IF(LEN('Παρακολούθηση απώλειας βάρους'!$C67)=0,0,'Παρακολούθηση απώλειας βάρους'!$C67)),\"\")","v":0}]
[{"$f":"IF((LEN('Παρακολούθηση απώλειας βάρους'!$C68)=0),TRUE)","v":true},{"$f":"IFERROR(IF(A65,0,IF(LEN('Παρακολούθηση απώλειας βάρους'!$B68)=0,0,'Παρακολούθηση απώλειας βάρους'!$B68)),\"\")","v":"00:00:00"},{"$f":"IFERROR(IF(A65,0,IF(LEN('Παρακολούθηση απώλειας βάρους'!$C68)=0,0,'Παρακολούθηση απώλειας βάρους'!$C68)),\"\")","v":0}]
[{"$f":"IF((LEN('Παρακολούθηση απώλειας βάρους'!$C69)=0),TRUE)","v":true},{"$f":"IFERROR(IF(A66,0,IF(LEN('Παρακολούθηση απώλειας βάρους'!$B69)=0,0,'Παρακολούθηση απώλειας βάρους'!$B69)),\"\")","v":"00:00:00"},{"$f":"IFERROR(IF(A66,0,IF(LEN('Παρακολούθηση απώλειας βάρους'!$C69)=0,0,'Παρακολούθηση απώλειας βάρους'!$C69)),\"\")","v":0}]
[{"$f":"IF((LEN('Παρακολούθηση απώλειας βάρους'!$C70)=0),TRUE)","v":true},{"$f":"IFERROR(IF(A67,0,IF(LEN('Παρακολούθηση απώλειας βάρους'!$B70)=0,0,'Παρακολούθηση απώλειας βάρους'!$B70)),\"\")","v":"00:00:00"},{"$f":"IFERROR(IF(A67,0,IF(LEN('Παρακολούθηση απώλειας βάρους'!$C70)=0,0,'Παρακολούθηση απώλειας βάρους'!$C70)),\"\")","v":0}]
[{"$f":"IF((LEN('Παρακολούθηση απώλειας βάρους'!$C71)=0),TRUE)","v":true},{"$f":"IFERROR(IF(A68,0,IF(LEN('Παρακολούθηση απώλειας βάρους'!$B71)=0,0,'Παρακολούθηση απώλειας βάρους'!$B71)),\"\")","v":"00:00:00"},{"$f":"IFERROR(IF(A68,0,IF(LEN('Παρακολούθηση απώλειας βάρους'!$C71)=0,0,'Παρακολούθηση απώλειας βάρους'!$C71)),\"\")","v":0}]
[{"$f":"IF((LEN('Παρακολούθηση απώλειας βάρους'!$C72)=0),TRUE)","v":true},{"$f":"IFERROR(IF(A69,0,IF(LEN('Παρακολούθηση απώλειας βάρους'!$B72)=0,0,'Παρακολούθηση απώλειας βάρους'!$B72)),\"\")","v":"00:00:00"},{"$f":"IFERROR(IF(A69,0,IF(LEN('Παρακολούθηση απώλειας βάρους'!$C72)=0,0,'Παρακολούθηση απώλειας βάρους'!$C72)),\"\")","v":0}]
[{"$f":"IF((LEN('Παρακολούθηση απώλειας βάρους'!$C73)=0),TRUE)","v":true},{"$f":"IFERROR(IF(A70,0,IF(LEN('Παρακολούθηση απώλειας βάρους'!$B73)=0,0,'Παρακολούθηση απώλειας βάρους'!$B73)),\"\")","v":"00:00:00"},{"$f":"IFERROR(IF(A70,0,IF(LEN('Παρακολούθηση απώλειας βάρους'!$C73)=0,0,'Παρακολούθηση απώλειας βάρους'!$C73)),\"\")","v":0}]
[{"$f":"IF((LEN('Παρακολούθηση απώλειας βάρους'!$C74)=0),TRUE)","v":true},{"$f":"IFERROR(IF(A71,0,IF(LEN('Παρακολούθηση απώλειας βάρους'!$B74)=0,0,'Παρακολούθηση απώλειας βάρους'!$B74)),\"\")","v":"00:00:00"},{"$f":"IFERROR(IF(A71,0,IF(LEN('Παρακολούθηση απώλειας βάρους'!$C74)=0,0,'Παρακολούθηση απώλειας βάρους'!$C74)),\"\")","v":0}]
[{"$f":"IF((LEN('Παρακολούθηση απώλειας βάρους'!$C75)=0),TRUE)","v":true},{"$f":"IFERROR(IF(A72,0,IF(LEN('Παρακολούθηση απώλειας βάρους'!$B75)=0,0,'Παρακολούθηση απώλειας βάρους'!$B75)),\"\")","v":"00:00:00"},{"$f":"IFERROR(IF(A72,0,IF(LEN('Παρακολούθηση απώλειας βάρους'!$C75)=0,0,'Παρακολούθηση απώλειας βάρους'!$C75)),\"\")","v":0}]
[{"$f":"IF((LEN('Παρακολούθηση απώλειας βάρους'!$C76)=0),TRUE)","v":true},{"$f":"IFERROR(IF(A73,0,IF(LEN('Παρακολούθηση απώλειας βάρους'!$B76)=0,0,'Παρακολούθηση απώλειας βάρους'!$B76)),\"\")","v":"00:00:00"},{"$f":"IFERROR(IF(A73,0,IF(LEN('Παρακολούθηση απώλειας βάρους'!$C76)=0,0,'Παρακολούθηση απώλειας βάρους'!$C76)),\"\")","v":0}]
[{"$f":"IF((LEN('Παρακολούθηση απώλειας βάρους'!$C77)=0),TRUE)","v":true},{"$f":"IFERROR(IF(A74,0,IF(LEN('Παρακολούθηση απώλειας βάρους'!$B77)=0,0,'Παρακολούθηση απώλειας βάρους'!$B77)),\"\")","v":"00:00:00"},{"$f":"IFERROR(IF(A74,0,IF(LEN('Παρακολούθηση απώλειας βάρους'!$C77)=0,0,'Παρακολούθηση απώλειας βάρους'!$C77)),\"\")","v":0}]
[{"$f":"IF((LEN('Παρακολούθηση απώλειας βάρους'!$C78)=0),TRUE)","v":true},{"$f":"IFERROR(IF(A75,0,IF(LEN('Παρακολούθηση απώλειας βάρους'!$B78)=0,0,'Παρακολούθηση απώλειας βάρους'!$B78)),\"\")","v":"00:00:00"},{"$f":"IFERROR(IF(A75,0,IF(LEN('Παρακολούθηση απώλειας βάρους'!$C78)=0,0,'Παρακολούθηση απώλειας βάρους'!$C78)),\"\")","v":0}]
[{"$f":"IF((LEN('Παρακολούθηση απώλειας βάρους'!$C79)=0),TRUE)","v":true},{"$f":"IFERROR(IF(A76,0,IF(LEN('Παρακολούθηση απώλειας βάρους'!$B79)=0,0,'Παρακολούθηση απώλειας βάρους'!$B79)),\"\")","v":"00:00:00"},{"$f":"IFERROR(IF(A76,0,IF(LEN('Παρακολούθηση απώλειας βάρους'!$C79)=0,0,'Παρακολούθηση απώλειας βάρους'!$C79)),\"\")","v":0}]
[{"$f":"IF((LEN('Παρακολούθηση απώλειας βάρους'!$C80)=0),TRUE)","v":true},{"$f":"IFERROR(IF(A77,0,IF(LEN('Παρακολούθηση απώλειας βάρους'!$B80)=0,0,'Παρακολούθηση απώλειας βάρους'!$B80)),\"\")","v":"00:00:00"},{"$f":"IFERROR(IF(A77,0,IF(LEN('Παρακολούθηση απώλειας βάρους'!$C80)=0,0,'Παρακολούθηση απώλειας βάρους'!$C80)),\"\")","v":0}]
[{"$f":"IF((LEN('Παρακολούθηση απώλειας βάρους'!$C81)=0),TRUE)","v":true},{"$f":"IFERROR(IF(A78,0,IF(LEN('Παρακολούθηση απώλειας βάρους'!$B81)=0,0,'Παρακολούθηση απώλειας βάρους'!$B81)),\"\")","v":"00:00:00"},{"$f":"IFERROR(IF(A78,0,IF(LEN('Παρακολούθηση απώλειας βάρους'!$C81)=0,0,'Παρακολούθηση απώλειας βάρους'!$C81)),\"\")","v":0}]
[{"$f":"IF((LEN('Παρακολούθηση απώλειας βάρους'!$C82)=0),TRUE)","v":true},{"$f":"IFERROR(IF(A79,0,IF(LEN('Παρακολούθηση απώλειας βάρους'!$B82)=0,0,'Παρακολούθηση απώλειας βάρους'!$B82)),\"\")","v":"00:00:00"},{"$f":"IFERROR(IF(A79,0,IF(LEN('Παρακολούθηση απώλειας βάρους'!$C82)=0,0,'Παρακολούθηση απώλειας βάρους'!$C82)),\"\")","v":0}]
[{"$f":"IF((LEN('Παρακολούθηση απώλειας βάρους'!$C83)=0),TRUE)","v":true},{"$f":"IFERROR(IF(A80,0,IF(LEN('Παρακολούθηση απώλειας βάρους'!$B83)=0,0,'Παρακολούθηση απώλειας βάρους'!$B83)),\"\")","v":"00:00:00"},{"$f":"IFERROR(IF(A80,0,IF(LEN('Παρακολούθηση απώλειας βάρους'!$C83)=0,0,'Παρακολούθηση απώλειας βάρους'!$C83)),\"\")","v":0}]
[{"$f":"IF((LEN('Παρακολούθηση απώλειας βάρους'!$C84)=0),TRUE)","v":true},{"$f":"IFERROR(IF(A81,0,IF(LEN('Παρακολούθηση απώλειας βάρους'!$B84)=0,0,'Παρακολούθηση απώλειας βάρους'!$B84)),\"\")","v":"00:00:00"},{"$f":"IFERROR(IF(A81,0,IF(LEN('Παρακολούθηση απώλειας βάρους'!$C84)=0,0,'Παρακολούθηση απώλειας βάρους'!$C84)),\"\")","v":0}]
[{"$f":"IF((LEN('Παρακολούθηση απώλειας βάρους'!$C85)=0),TRUE)","v":true},{"$f":"IFERROR(IF(A82,0,IF(LEN('Παρακολούθηση απώλειας βάρους'!$B85)=0,0,'Παρακολούθηση απώλειας βάρους'!$B85)),\"\")","v":"00:00:00"},{"$f":"IFERROR(IF(A82,0,IF(LEN('Παρακολούθηση απώλειας βάρους'!$C85)=0,0,'Παρακολούθηση απώλειας βάρους'!$C85)),\"\")","v":0}]
[{"$f":"IF((LEN('Παρακολούθηση απώλειας βάρους'!$C86)=0),TRUE)","v":true},{"$f":"IFERROR(IF(A83,0,IF(LEN('Παρακολούθηση απώλειας βάρους'!$B86)=0,0,'Παρακολούθηση απώλειας βάρους'!$B86)),\"\")","v":"00:00:00"},{"$f":"IFERROR(IF(A83,0,IF(LEN('Παρακολούθηση απώλειας βάρους'!$C86)=0,0,'Παρακολούθηση απώλειας βάρους'!$C86)),\"\")","v":0}]
[{"$f":"IF((LEN('Παρακολούθηση απώλειας βάρους'!$C87)=0),TRUE)","v":true},{"$f":"IFERROR(IF(A84,0,IF(LEN('Παρακολούθηση απώλειας βάρους'!$B87)=0,0,'Παρακολούθηση απώλειας βάρους'!$B87)),\"\")","v":"00:00:00"},{"$f":"IFERROR(IF(A84,0,IF(LEN('Παρακολούθηση απώλειας βάρους'!$C87)=0,0,'Παρακολούθηση απώλειας βάρους'!$C87)),\"\")","v":0}]
[{"$f":"IF((LEN('Παρακολούθηση απώλειας βάρους'!$C88)=0),TRUE)","v":true},{"$f":"IFERROR(IF(A85,0,IF(LEN('Παρακολούθηση απώλειας βάρους'!$B88)=0,0,'Παρακολούθηση απώλειας βάρους'!$B88)),\"\")","v":"00:00:00"},{"$f":"IFERROR(IF(A85,0,IF(LEN('Παρακολούθηση απώλειας βάρους'!$C88)=0,0,'Παρακολούθηση απώλειας βάρους'!$C88)),\"\")","v":0}]
[{"$f":"IF((LEN('Παρακολούθηση απώλειας βάρους'!$C89)=0),TRUE)","v":true},{"$f":"IFERROR(IF(A86,0,IF(LEN('Παρακολούθηση απώλειας βάρους'!$B89)=0,0,'Παρακολούθηση απώλειας βάρους'!$B89)),\"\")","v":"00:00:00"},{"$f":"IFERROR(IF(A86,0,IF(LEN('Παρακολούθηση απώλειας βάρους'!$C89)=0,0,'Παρακολούθηση απώλειας βάρους'!$C89)),\"\")","v":0}]
[{"$f":"IF((LEN('Παρακολούθηση απώλειας βάρους'!$C90)=0),TRUE)","v":true},{"$f":"IFERROR(IF(A87,0,IF(LEN('Παρακολούθηση απώλειας βάρους'!$B90)=0,0,'Παρακολούθηση απώλειας βάρους'!$B90)),\"\")","v":"00:00:00"},{"$f":"IFERROR(IF(A87,0,IF(LEN('Παρακολούθηση απώλειας βάρους'!$C90)=0,0,'Παρακολούθηση απώλειας βάρους'!$C90)),\"\")","v":0}]
[{"$f":"IF((LEN('Παρακολούθηση απώλειας βάρους'!$C91)=0),TRUE)","v":true},{"$f":"IFERROR(IF(A88,0,IF(LEN('Παρακολούθηση απώλειας βάρους'!$B91)=0,0,'Παρακολούθηση απώλειας βάρους'!$B91)),\"\")","v":"00:00:00"},{"$f":"IFERROR(IF(A88,0,IF(LEN('Παρακολούθηση απώλειας βάρους'!$C91)=0,0,'Παρακολούθηση απώλειας βάρους'!$C91)),\"\")","v":0}]
[{"$f":"IF((LEN('Παρακολούθηση απώλειας βάρους'!$C92)=0),TRUE)","v":true},{"$f":"IFERROR(IF(A89,0,IF(LEN('Παρακολούθηση απώλειας βάρους'!$B92)=0,0,'Παρακολούθηση απώλειας βάρους'!$B92)),\"\")","v":"00:00:00"},{"$f":"IFERROR(IF(A89,0,IF(LEN('Παρακολούθηση απώλειας βάρους'!$C92)=0,0,'Παρακολούθηση απώλειας βάρους'!$C92)),\"\")","v":0}]
[{"$f":"IF((LEN('Παρακολούθηση απώλειας βάρους'!$C93)=0),TRUE)","v":true},{"$f":"IFERROR(IF(A90,0,IF(LEN('Παρακολούθηση απώλειας βάρους'!$B93)=0,0,'Παρακολούθηση απώλειας βάρους'!$B93)),\"\")","v":"00:00:00"},{"$f":"IFERROR(IF(A90,0,IF(LEN('Παρακολούθηση απώλειας βάρους'!$C93)=0,0,'Παρακολούθηση απώλειας βάρους'!$C93)),\"\")","v":0}]
[{"$f":"IF((LEN('Παρακολούθηση απώλειας βάρους'!$C94)=0),TRUE)","v":true},{"$f":"IFERROR(IF(A91,0,IF(LEN('Παρακολούθηση απώλειας βάρους'!$B94)=0,0,'Παρακολούθηση απώλειας βάρους'!$B94)),\"\")","v":"00:00:00"},{"$f":"IFERROR(IF(A91,0,IF(LEN('Παρακολούθηση απώλειας βάρους'!$C94)=0,0,'Παρακολούθηση απώλειας βάρους'!$C94)),\"\")","v":0}]
[{"$f":"IF((LEN('Παρακολούθηση απώλειας βάρους'!$C95)=0),TRUE)","v":true},{"$f":"IFERROR(IF(A92,0,IF(LEN('Παρακολούθηση απώλειας βάρους'!$B95)=0,0,'Παρακολούθηση απώλειας βάρους'!$B95)),\"\")","v":"00:00:00"},{"$f":"IFERROR(IF(A92,0,IF(LEN('Παρακολούθηση απώλειας βάρους'!$C95)=0,0,'Παρακολούθηση απώλειας βάρους'!$C95)),\"\")","v":0}]
[{"$f":"IF((LEN('Παρακολούθηση απώλειας βάρους'!$C96)=0),TRUE)","v":true},{"$f":"IFERROR(IF(A93,0,IF(LEN('Παρακολούθηση απώλειας βάρους'!$B96)=0,0,'Παρακολούθηση απώλειας βάρους'!$B96)),\"\")","v":"00:00:00"},{"$f":"IFERROR(IF(A93,0,IF(LEN('Παρακολούθηση απώλειας βάρους'!$C96)=0,0,'Παρακολούθηση απώλειας βάρους'!$C96)),\"\")","v":0}]
[{"$f":"IF((LEN('Παρακολούθηση απώλειας βάρους'!$C97)=0),TRUE)","v":true},{"$f":"IFERROR(IF(A94,0,IF(LEN('Παρακολούθηση απώλειας βάρους'!$B97)=0,0,'Παρακολούθηση απώλειας βάρους'!$B97)),\"\")","v":"00:00:00"},{"$f":"IFERROR(IF(A94,0,IF(LEN('Παρακολούθηση απώλειας βάρους'!$C97)=0,0,'Παρακολούθηση απώλειας βάρους'!$C97)),\"\")","v":0}]
[{"$f":"IF((LEN('Παρακολούθηση απώλειας βάρους'!$C98)=0),TRUE)","v":true},{"$f":"IFERROR(IF(A95,0,IF(LEN('Παρακολούθηση απώλειας βάρους'!$B98)=0,0,'Παρακολούθηση απώλειας βάρους'!$B98)),\"\")","v":"00:00:00"},{"$f":"IFERROR(IF(A95,0,IF(LEN('Παρακολούθηση απώλειας βάρους'!$C98)=0,0,'Παρακολούθηση απώλειας βάρους'!$C98)),\"\")","v":0}]
[{"$f":"IF((LEN('Παρακολούθηση απώλειας βάρους'!$C99)=0),TRUE)","v":true},{"$f":"IFERROR(IF(A96,0,IF(LEN('Παρακολούθηση απώλειας βάρους'!$B99)=0,0,'Παρακολούθηση απώλειας βάρους'!$B99)),\"\")","v":"00:00:00"},{"$f":"IFERROR(IF(A96,0,IF(LEN('Παρακολούθηση απώλειας βάρους'!$C99)=0,0,'Παρακολούθηση απώλειας βάρους'!$C99)),\"\")","v":0}]
[{"$f":"IF((LEN('Παρακολούθηση απώλειας βάρους'!$C100)=0),TRUE)","v":true},{"$f":"IFERROR(IF(A97,0,IF(LEN('Παρακολούθηση απώλειας βάρους'!$B100)=0,0,'Παρακολούθηση απώλειας βάρους'!$B100)),\"\")","v":"00:00:00"},{"$f":"IFERROR(IF(A97,0,IF(LEN('Παρακολούθηση απώλειας βάρους'!$C100)=0,0,'Παρακολούθηση απώλειας βάρους'!$C100)),\"\")","v":0}]
[{"$f":"IF((LEN('Παρακολούθηση απώλειας βάρους'!$C101)=0),TRUE)","v":true},{"$f":"IFERROR(IF(A98,0,IF(LEN('Παρακολούθηση απώλειας βάρους'!$B101)=0,0,'Παρακολούθηση απώλειας βάρους'!$B101)),\"\")","v":"00:00:00"},{"$f":"IFERROR(IF(A98,0,IF(LEN('Παρακολούθηση απώλειας βάρους'!$C101)=0,0,'Παρακολούθηση απώλειας βάρους'!$C101)),\"\")","v":0}]
[{"$f":"IF((LEN('Παρακολούθηση απώλειας βάρους'!$C102)=0),TRUE)","v":true},{"$f":"IFERROR(IF(A99,0,IF(LEN('Παρακολούθηση απώλειας βάρους'!$B102)=0,0,'Παρακολούθηση απώλειας βάρους'!$B102)),\"\")","v":"00:00:00"},{"$f":"IFERROR(IF(A99,0,IF(LEN('Παρακολούθηση απώλειας βάρους'!$C102)=0,0,'Παρακολούθηση απώλειας βάρους'!$C102)),\"\")","v":0}]
[{"$f":"IF((LEN('Παρακολούθηση απώλειας βάρους'!$C103)=0),TRUE)","v":true},{"$f":"IFERROR(IF(A100,0,IF(LEN('Παρακολούθηση απώλειας βάρους'!$B103)=0,0,'Παρακολούθηση απώλειας βάρους'!$B103)),\"\")","v":"00:00:00"},{"$f":"IFERROR(IF(A100,0,IF(LEN('Παρακολούθηση απώλειας βάρους'!$C103)=0,0,'Παρακολούθηση απώλειας βάρους'!$C103)),\"\")","v":0}]
[{"$f":"IF((LEN('Παρακολούθηση απώλειας βάρους'!$C104)=0),TRUE)","v":true},{"$f":"IFERROR(IF(A101,0,IF(LEN('Παρακολούθηση απώλειας βάρους'!$B104)=0,0,'Παρακολούθηση απώλειας βάρους'!$B104)),\"\")","v":"00:00:00"},{"$f":"IFERROR(IF(A101,0,IF(LEN('Παρακολούθηση απώλειας βάρους'!$C104)=0,0,'Παρακολούθηση απώλειας βάρους'!$C104)),\"\")","v":0}]
[{"$f":"IF((LEN('Παρακολούθηση απώλειας βάρους'!$C105)=0),TRUE)","v":true},{"$f":"IFERROR(IF(A102,0,IF(LEN('Παρακολούθηση απώλειας βάρους'!$B105)=0,0,'Παρακολούθηση απώλειας βάρους'!$B105)),\"\")","v":"00:00:00"},{"$f":"IFERROR(IF(A102,0,IF(LEN('Παρακολούθηση απώλειας βάρους'!$C105)=0,0,'Παρακολούθηση απώλειας βάρους'!$C105)),\"\")","v":0}]
[{"$f":"IF((LEN('Παρακολούθηση απώλειας βάρους'!$C106)=0),TRUE)","v":true},{"$f":"IFERROR(IF(A103,0,IF(LEN('Παρακολούθηση απώλειας βάρους'!$B106)=0,0,'Παρακολούθηση απώλειας βάρους'!$B106)),\"\")","v":"00:00:00"},{"$f":"IFERROR(IF(A103,0,IF(LEN('Παρακολούθηση απώλειας βάρους'!$C106)=0,0,'Παρακολούθηση απώλειας βάρους'!$C106)),\"\")","v":0}]
[{"$f":"IF((LEN('Παρακολούθηση απώλειας βάρους'!$C107)=0),TRUE)","v":true},{"$f":"IFERROR(IF(A104,0,IF(LEN('Παρακολούθηση απώλειας βάρους'!$B107)=0,0,'Παρακολούθηση απώλειας βάρους'!$B107)),\"\")","v":"00:00:00"},{"$f":"IFERROR(IF(A104,0,IF(LEN('Παρακολούθηση απώλειας βάρους'!$C107)=0,0,'Παρακολούθηση απώλειας βάρους'!$C107)),\"\")","v":0}]
[{"$f":"IF((LEN('Παρακολούθηση απώλειας βάρους'!$C108)=0),TRUE)","v":true},{"$f":"IFERROR(IF(A105,0,IF(LEN('Παρακολούθηση απώλειας βάρους'!$B108)=0,0,'Παρακολούθηση απώλειας βάρους'!$B108)),\"\")","v":"00:00:00"},{"$f":"IFERROR(IF(A105,0,IF(LEN('Παρακολούθηση απώλειας βάρους'!$C108)=0,0,'Παρακολούθηση απώλειας βάρους'!$C108)),\"\")","v":0}]
[{"$f":"IF((LEN('Παρακολούθηση απώλειας βάρους'!$C109)=0),TRUE)","v":true},{"$f":"IFERROR(IF(A106,0,IF(LEN('Παρακολούθηση απώλειας βάρους'!$B109)=0,0,'Παρακολούθηση απώλειας βάρους'!$B109)),\"\")","v":"00:00:00"},{"$f":"IFERROR(IF(A106,0,IF(LEN('Παρακολούθηση απώλειας βάρους'!$C109)=0,0,'Παρακολούθηση απώλειας βάρους'!$C109)),\"\")","v":0}]
[{"$f":"IF((LEN('Παρακολούθηση απώλειας βάρους'!$C110)=0),TRUE)","v":true},{"$f":"IFERROR(IF(A107,0,IF(LEN('Παρακολούθηση απώλειας βάρους'!$B110)=0,0,'Παρακολούθηση απώλειας βάρους'!$B110)),\"\")","v":"00:00:00"},{"$f":"IFERROR(IF(A107,0,IF(LEN('Παρακολούθηση απώλειας βάρους'!$C110)=0,0,'Παρακολούθηση απώλειας βάρους'!$C110)),\"\")","v":0}]